bitfinex/quotes_BTCUSD_20251221
["timestamp","ask_amount","ask_price","bid_price","bid_amount"]
[1766331388301,0.00568,88095.0,88080.0,0.36014]
[1766331388302,0.01703383,88095.0,88082.0,0.13335]
[1766331388506,0.01703383,88095.0,88082.0,0.23035]
[1766331388870,0.01703383,88095.0,88084.0,0.13335]
[1766331389335,0.00568,88095.0,88084.0,0.13335]
[1766331390810,0.00568,88095.0,88084.0,0.36015745]
[1766331391014,0.07565852,88097.0,88085.0,0.23035]
[1766331391894,0.0643074,88097.0,88085.0,0.23035]
[1766331392219,0.00568,88096.0,88085.0,0.23035]
[1766331392693,0.01135138,88095.0,88085.0,0.23035]
[1766331393282,0.06811272,88090.0,88085.0,0.229801]
[1766331393662,0.01135215,88089.0,88085.0,0.229801]
[1766331394068,0.01135228,88088.0,88085.0,0.229801]
[1766331394582,0.01135202,88090.0,88085.0,0.229801]
[1766331394983,0.01135202,88090.0,88080.0,0.00568]
[1766331395166,0.47650225,88090.0,88080.0,0.00568]
[1766331395378,0.01135202,88090.0,88080.0,0.24194]
[1766331395578,0.01135202,88090.0,88080.0,0.37709]
[1766331395996,0.05676077,88089.0,88080.0,0.37709]
[1766331396325,0.01135228,88088.0,88080.0,0.37709]
[1766331396826,0.01135228,88088.0,88080.0,0.00568]
[1766331397022,0.01135228,88088.0,88082.0,0.23626]
[1766331397218,0.01135202,88090.0,88088.0,0.000549]
[1766331397423,0.01135202,88090.0,88082.0,0.37141]
[1766331397615,0.01135189,88091.0,88082.0,0.37141]
[1766331398402,0.01135215,88089.0,88082.0,0.37141]
[1766331400241,0.0681118,88091.0,88082.0,0.37141]
[1766331400436,0.01135215,88089.0,88082.0,0.37141]
[1766331403524,0.01135228,88088.0,88082.0,0.37141]
[1766331403963,0.01135215,88089.0,88082.0,0.37141]
[1766331404347,0.01135228,88088.0,88082.0,0.37141]
[1766331405888,0.01135215,88089.0,88083.0,0.23626]
[1766331406893,0.01135189,88091.0,88083.0,0.23626]
[1766331407915,0.024549,88092.0,88091.0,0.000549]
[1766331408081,0.01135176,88092.0,88083.0,0.23626]
[1766331408276,0.04706402,88092.0,88083.0,0.23626]
[1766331408703,0.01135189,88091.0,88083.0,0.23626]
[1766331408862,0.04706402,88092.0,88083.0,0.23626]
[1766331409071,0.01135189,88091.0,88083.0,0.23626]
[1766331409530,0.04706402,88092.0,88083.0,0.23626]
[1766331409880,0.03590063,88093.0,88083.0,0.23626]
[1766331410964,0.01135176,88092.0,88083.0,0.23626]
[1766331411105,0.01135202,88090.0,88083.0,0.23626]
[1766331411312,0.01135215,88089.0,88083.0,0.23626]
[1766331411495,0.01135202,88090.0,88083.0,0.23626]
[1766331411695,0.01135215,88089.0,88083.0,0.23626]
[1766331412369,0.01135228,88088.0,88083.0,0.23626]
[1766331412695,0.01135202,88090.0,88083.0,0.23626]
[1766331413575,0.01135189,88091.0,88083.0,0.23626]
[1766331414453,0.01135202,88090.0,88083.0,0.23626]
[1766331414656,0.01135189,88091.0,88083.0,0.23626]
[1766331414960,0.01135202,88090.0,88083.0,0.23626]
[1766331415163,0.01135189,88091.0,88083.0,0.23626]
[1766331416152,0.03589718,88092.0,88083.0,0.23626]
[1766331416363,0.05675877,88093.0,88083.0,0.23626]
[1766331416364,0.01134944,88110.0,88092.0,0.05675825]
[1766331416540,0.24035919,88112.0,88096.0,0.23626]
[1766331416746,0.24035919,88112.0,88096.0,0.37141]
[1766331416747,0.01134944,88110.0,88096.0,0.37141]
[1766331417079,0.01134957,88109.0,88096.0,0.37141]
[1766331417227,0.01159743,88108.0,88096.0,0.37141]
[1766331417432,0.01134983,88107.0,88096.0,0.37141]
[1766331417668,0.01134996,88106.0,88096.0,0.37141]
[1766331417875,0.01159743,88108.0,88091.0,0.00568]
[1766331417876,0.02271063,88098.0,88091.0,0.00568]
[1766331418068,0.22901,88098.0,88091.0,0.00568]
[1766331418247,0.46519705,88100.0,88088.0,0.03410693]
[1766331418248,0.01135112,88097.0,88088.0,0.03410693]
[1766331418585,0.01135112,88097.0,88087.0,0.00568]
[1766331418586,0.22901,88095.0,88087.0,0.00568]
[1766331418786,0.36292,88094.0,88087.0,0.00568]
[1766331419747,0.01134983,88107.0,88094.0,0.000549]
[1766331419951,0.01134983,88107.0,88095.0,0.37141]
[1766331419952,0.01135009,88105.0,88095.0,0.37141]
[1766331420155,0.24603996,88106.0,88095.0,0.37141]
[1766331420396,0.36292,88105.0,88095.0,0.23626]
[1766331421053,0.37427009,88105.0,88095.0,0.23626]
[1766331421758,0.00568,88104.0,88095.0,0.23626]
[1766331421971,0.23469,88104.0,88091.0,0.13515]
[1766331422170,0.3686,88104.0,88091.0,0.13515]
[1766331422404,0.22901,88103.0,88091.0,0.13515]
[1766331422946,0.23469,88103.0,88091.0,0.13515]
[1766331424827,0.23469,88103.0,88091.0,0.14650189]
[1766331424991,0.1356,88101.0,88089.0,0.23626]
[1766331425192,0.00568,88103.0,88079.0,0.13217]
[1766331425193,0.01135202,88090.0,88079.0,0.13217]
[1766331425415,0.02271063,88095.0,88053.0,0.02271063]
[1766331425416,0.23712,88088.0,88085.0,0.00568]
[1766331425579,0.23712,88088.0,88084.0,0.00568]
[1766331426235,0.1356,88092.0,88084.0,0.00568]
[1766331426557,0.02271063,88095.0,88084.0,0.00568]
[1766331427703,0.00568,88097.0,88085.0,0.25245]
[1766331427914,0.00568,88097.0,88088.0,0.38462]
[1766331428113,0.14695048,88102.0,88088.0,0.38462]
[1766331428114,0.00568,88099.0,88088.0,0.38462]
[1766331428316,0.00568,88099.0,88084.0,0.00568]
[1766331428317,0.1356,88096.0,88084.0,0.00568]
[1766331428514,0.37272,88096.0,88084.0,0.00568]
[1766331428990,0.01135073,88100.0,88084.0,0.00568]
[1766331428991,0.00024773,88108.0,88086.0,0.13217]
[1766331429199,0.00592773,88108.0,88094.0,0.05675744]
[1766331429391,0.00592773,88108.0,88098.0,0.01135099]
[1766331429553,0.24304773,88108.0,88096.0,0.14352125]
[1766331429961,0.24304773,88108.0,88096.0,0.13217]
[1766331430492,0.14152773,88108.0,88096.0,0.13217]
[1766331430787,0.23712,88107.0,88096.0,0.13217]
[1766331431189,0.23712,88107.0,88096.0,0.14352125]
[1766331431396,0.01134919,88112.0,88095.0,0.26380138]
[1766331431397,0.1356,88127.0,88107.0,0.01134983]
[1766331431727,0.1356,88127.0,88115.0,0.0113488]
[1766331431728,0.27085828,88126.0,88115.0,0.0113488]
[1766331431912,0.02805828,88125.0,88113.0,0.01134906]
[1766331432119,0.02271063,88123.0,88114.0,0.01134893]
[1766331432322,0.0002477,88116.0,88112.0,0.14351919]
[1766331432498,0.0002477,88116.0,88110.0,0.01134906]
[1766331432679,0.0002477,88116.0,88110.0,0.01080006]
[1766331432879,0.0002477,88116.0,88108.0,0.0113497]
[1766331432880,0.0002477,88116.0,88109.0,0.26379957]
[1766331433470,0.0002477,88116.0,88110.0,0.14351944]
[1766331433870,0.0002477,88116.0,88110.0,0.13217]
[1766331434099,0.0002477,88116.0,88113.0,0.01134906]
[1766331434315,0.0002477,88116.0,88112.0,0.01134919]
[1766331435122,0.0002477,88116.0,88111.0,0.01134932]
[1766331435762,0.0002477,88116.0,88112.0,0.01134919]
[1766331436175,0.0002477,88116.0,88111.0,0.01134932]
[1766331436387,0.0002477,88116.0,88112.0,0.01134919]
[1766331436592,0.0002477,88116.0,88110.0,0.13217]
[1766331436839,0.0002477,88116.0,88109.0,0.25245]
[1766331438603,0.0002477,88116.0,88108.0,0.04545093]
[1766331438604,0.0002477,88116.0,88108.0,0.03410123]
[1766331439394,0.0002477,88116.0,88108.0,0.16627123]
[1766331439804,0.23712,88115.0,88108.0,0.03410123]
[1766331440001,0.1356,88114.0,88108.0,1.23e-06]
[1766331440203,0.37272,88113.0,88108.0,1.23e-06]
[1766331440531,0.0340584,88123.0,88105.0,0.06810003]
[1766331440532,0.00568,88122.0,88114.0,0.13217]
[1766331440740,0.00568,88121.0,88114.0,0.13217]
[1766331441073,0.00568,88121.0,88113.0,0.25245]
[1766331441479,0.00568,88121.0,88113.0,0.26379906]
[1766331442710,0.01134687,88130.0,88110.0,0.22297681]
[1766331442711,0.0001,88133.0,88123.0,0.13217]
[1766331442926,0.00568,88132.0,88124.0,0.38462]
[1766331443322,0.00568,88132.0,88118.0,0.06809011]
[1766331443323,0.0001,88133.0,88125.0,0.13217]
[1766331443658,0.0001,88133.0,88123.0,0.01134777]
[1766331443659,0.0002,88164.0,88134.0,0.13217]
[1766331443660,0.00568,88146.0,88134.0,0.13217]
[1766331443866,0.00568,88146.0,88134.0,0.14351635]
[1766331443867,0.03445509,88142.0,88134.0,0.14351635]
[1766331443992,0.00035777,88142.0,88134.0,0.14351635]
[1766331444191,0.14415417,88151.0,88128.0,0.02271063]
[1766331444192,0.03409286,88151.0,88142.0,0.000357]
[1766331444422,0.33927744,88157.0,88143.0,0.13217]
[1766331444423,0.23712,88157.0,88143.0,0.13217]
[1766331444625,0.00568,88158.0,88151.0,0.01134417]
[1766331444865,0.0002,88163.0,88151.0,0.01134417]
[1766331444866,0.00568,88160.0,88157.0,0.01134339]
[1766331445082,0.0002,88163.0,88157.0,0.01134339]
[1766331445083,0.0002,88163.0,88158.0,0.01134327]
[1766331445301,0.0002,88163.0,88154.0,0.06806262]
[1766331445302,0.06805116,88169.0,88154.0,0.00568]
[1766331445515,0.00055,88158.0,88155.0,0.00454437]
[1766331445960,0.01134327,88158.0,88155.0,0.00454437]
[1766331446182,0.01134327,88158.0,88138.0,0.01134584]
[1766331446183,0.01134417,88151.0,88137.0,0.00568]
[1766331446405,0.24846404,88152.0,88140.0,0.03408767]
[1766331446627,0.01134417,88151.0,88140.0,0.03408767]
[1766331446848,0.25414404,88152.0,88140.0,0.03408767]
[1766331447497,0.2428,88152.0,88140.0,0.03408767]
[1766331447911,0.24846417,88151.0,88140.0,0.03408767]
[1766331448343,0.06806601,88150.0,88140.0,0.03408767]
[1766331448559,0.00077385,88141.0,88138.0,0.13217]
[1766331448764,0.01134442,88149.0,88139.0,0.03408767]
[1766331449211,0.01134468,88147.0,88139.0,0.03408767]
[1766331449420,0.01134481,88146.0,88139.0,0.03408767]
[1766331449592,0.01134468,88147.0,88139.0,0.03408767]
[1766331449803,2.46e-06,88156.0,88143.0,0.13217]
[1766331450003,0.24846378,88154.0,88142.0,0.13217]
[1766331450333,0.23712,88153.0,88139.0,0.03408767]
[1766331450525,0.23712,88153.0,88139.0,0.16625767]
[1766331451004,0.23712,88153.0,88140.0,0.13217]
[1766331452628,0.25414365,88155.0,88141.0,0.25245]
[1766331452831,0.2428,88155.0,88141.0,0.25245]
[1766331453627,0.25414365,88155.0,88141.0,0.38462]
[1766331454023,0.06806363,88156.0,88140.0,0.16792]
[1766331454024,2.46e-06,88156.0,88140.0,0.16792]
[1766331454247,2.46e-06,88156.0,88145.0,0.16792]
[1766331454449,2.46e-06,88156.0,88146.0,0.16792]
[1766331456240,2.46e-06,88156.0,88147.0,0.2608]
[1766331456441,0.00099045,88148.0,88147.0,0.2608]
[1766331456762,0.00044145,88148.0,88147.0,0.43047]
[1766331457345,2.46e-06,88156.0,88147.0,0.43047]
[1766331457346,0.00568,88154.0,88150.0,0.01134429]
[1766331457582,0.00568,88154.0,88152.0,0.2608]
[1766331457782,0.00568,88158.0,88153.0,0.16967]
[1766331458021,0.00568,88158.0,88154.0,0.18328254]
[1766331458141,0.0002,88166.0,88154.0,0.16967]
[1766331458346,0.00568,88165.0,88155.0,0.16967]
[1766331459424,0.0002,88166.0,88158.0,0.16967]
[1766331459606,0.00568,88165.0,88159.0,0.16967]
[1766331459808,0.0002,88171.0,88159.0,0.16967]
[1766331460013,0.0002,88171.0,88157.0,0.01134339]
[1766331460014,0.00568,88170.0,88162.0,0.16967]
[1766331460401,0.00568,88170.0,88162.0,0.1832813]
[1766331460572,0.00568,88170.0,88162.0,0.16967]
[1766331461749,0.00568,88170.0,88156.0,0.01134352]
[1766331461750,0.00568,88170.0,88165.0,0.16967]
[1766331463004,0.04544,88174.0,88165.0,0.16967]
[1766331463211,0.0002,88175.0,88168.0,0.25239]
[1766331464317,0.0002,88175.0,88169.0,0.25333]
[1766331464515,0.0002,88175.0,88170.0,0.42331]
[1766331464747,0.26905,88184.0,88169.0,0.01134185]
[1766331464748,0.26905,88184.0,88171.0,0.0249515]
[1766331464924,0.00568,88183.0,88178.0,0.16967]
[1766331465106,0.00568,88183.0,88179.0,0.16967]
[1766331465535,0.00568,88183.0,88179.0,0.169121]
[1766331465715,0.00568,88183.0,88178.0,0.24446]
[1766331465915,0.00568,88183.0,88167.0,0.01134211]
[1766331465916,0.01702005,88183.0,88167.0,0.01134211]
[1766331466248,0.01702005,88183.0,88168.0,0.24539]
[1766331466455,0.00568,88183.0,88170.0,0.24539]
[1766331466630,0.01702005,88183.0,88170.0,0.24539]
[1766331466833,0.01134031,88181.0,88170.0,0.24539]
[1766331467242,0.00568,88183.0,88170.0,0.24539]
[1766331467618,0.04071089,88215.0,88170.0,0.24539]
[1766331467619,0.01133902,88191.0,88174.0,0.24602]
[1766331467821,0.26905,88203.0,88183.0,0.24602]
[1766331467822,0.00568,88190.0,88183.0,0.24602]
[1766331468019,0.0454,88195.0,88183.0,0.24602]
[1766331468020,0.01133902,88196.0,88184.0,0.16967]
[1766331468224,0.00548,88191.0,88185.0,0.16967]
[1766331468442,0.00568,88199.0,88185.0,0.16967]
[1766331468642,0.00568,88199.0,88191.0,0.170019]
[1766331468850,0.00578717,88199.0,88192.0,0.16967]
[1766331469721,0.00578717,88199.0,88189.0,0.03406735]
[1766331469722,0.01712516,88199.0,88189.0,0.03406735]
[1766331470000,0.01133863,88194.0,88189.0,0.03406735]
[1766331470206,0.01133876,88193.0,88189.0,0.03406735]
[1766331470569,0.01133889,88192.0,88184.0,0.16967]
[1766331470965,0.0002,88184.0,88181.0,0.00568]
[1766331471131,0.01133915,88190.0,88181.0,0.00568]
[1766331471132,0.01133928,88189.0,88181.0,0.00568]
[1766331471334,0.01133928,88189.0,88185.0,0.03406917]
[1766331471627,0.01701915,88190.0,88179.0,0.16967]
[1766331471794,0.01133941,88188.0,88179.0,0.16967]
[1766331471981,0.01701915,88190.0,88179.0,0.16967]
[1766331472189,0.00568,88190.0,88180.0,0.24694]
[1766331473014,0.00291444,88190.0,88180.0,0.24694]
[1766331473238,0.22674144,88207.0,88191.0,0.24514]
[1766331473239,0.00568,88205.0,88191.0,0.24514]
[1766331473615,0.00568,88205.0,88191.0,0.25647902]
[1766331473815,0.00568,88205.0,88191.0,0.24514]
[1766331474169,0.01701722,88205.0,88191.0,0.24514]
[1766331474669,0.00568,88205.0,88191.0,0.24514]
[1766331475017,0.00568,88205.0,88191.0,0.25647902]
[1766331475220,0.00568,88205.0,88193.0,0.24584]
[1766331475423,0.00568,88205.0,88193.0,0.41551]
[1766331476036,0.00568,88205.0,88193.0,0.24584]
[1766331476269,0.00568,88205.0,88193.0,0.41551]
[1766331476575,0.00568,88205.0,88194.0,0.16967]
[1766331476792,0.01701722,88205.0,88194.0,0.24631]
[1766331476962,0.00120621,88195.0,88194.0,0.41598]
[1766331477277,0.00120621,88195.0,88189.0,0.04540841]
[1766331477278,0.00085721,88195.0,88191.0,0.01133902]
[1766331477474,0.00568,88205.0,88195.0,0.16967]
[1766331479047,0.01701722,88205.0,88195.0,0.18100709]
[1766331479252,0.01701722,88205.0,88195.0,0.01133709]
[1766331479468,0.01133773,88201.0,88195.0,0.01078809]
[1766331479678,0.01133761,88202.0,88195.0,0.01078809]
[1766331479875,0.01701722,88205.0,88195.0,0.18045809]
[1766331480076,0.00568,88205.0,88196.0,0.16967]
[1766331480607,0.01701722,88205.0,88196.0,0.16967]
[1766331480878,0.00568,88205.0,88196.0,0.16967]
[1766331481285,0.00568,88205.0,88195.0,0.01078809]
[1766331481459,0.00568,88205.0,88197.0,0.16967]
[1766331481663,0.00568,88205.0,88191.0,0.00010717]
[1766331481664,0.26905,88196.0,88191.0,0.00010717]
[1766331481862,0.0001,88219.0,88179.0,0.17535]
[1766331481863,0.26905,88191.0,88179.0,0.17535]
[1766331482061,0.01701851,88195.0,88179.0,0.17535]
[1766331482062,0.00568,88195.0,88191.0,0.000549]
[1766331482249,0.26905,88199.0,88195.0,0.00055]
[1766331482450,0.26915711,88199.0,88195.0,0.00055]
[1766331482673,0.00010711,88199.0,88189.0,0.25898]
[1766331482868,0.00076442,88192.0,88191.0,0.16967]
[1766331483232,0.00076442,88192.0,88186.0,0.16967]
[1766331483432,0.00010711,88199.0,88186.0,0.16967]
[1766331483673,0.00010711,88199.0,88176.0,0.16967]
[1766331483674,0.15542,88196.0,88176.0,0.16967]
[1766331483874,0.26905,88195.0,88179.0,0.01134056]
[1766331484083,0.26905,88195.0,88181.0,0.25918]
[1766331484250,0.26905,88195.0,88183.0,0.16967]
[1766331484653,0.26905,88195.0,88183.0,0.18101005]
[1766331484855,0.26905,88195.0,88183.0,0.16967]
[1766331486355,0.26905,88195.0,88184.0,0.01360791]
[1766331486562,0.00568,88198.0,88186.0,0.16193]
[1766331486767,0.28378,88198.0,88186.0,0.16193]
[1766331487403,0.01701812,88198.0,88185.0,0.25717]
[1766331487628,0.44113,88197.0,88182.0,0.01134018]
[1766331487900,0.44113,88197.0,88182.0,0.16193]
[1766331488157,0.01133851,88195.0,88182.0,0.16193]
[1766331488385,0.45246825,88197.0,88182.0,0.16193]
[1766331488606,0.44113,88197.0,88182.0,0.16193]
[1766331488822,0.45246825,88197.0,88182.0,0.16193]
[1766331489049,0.44113,88197.0,88182.0,0.16193]
[1766331489294,0.44113,88197.0,88183.0,0.16193]
[1766331489537,0.44113,88197.0,88183.0,0.17327005]
[1766331489970,0.16303,88197.0,88183.0,0.17327005]
[1766331490173,0.2781,88196.0,88183.0,0.16193]
[1766331490382,0.2781,88196.0,88185.0,0.16193]
[1766331490770,0.2781,88196.0,88186.0,0.16193]
[1766331491649,0.34613082,88196.0,88185.0,0.25717]
[1766331491873,0.28943838,88196.0,88185.0,0.25717]
[1766331492189,0.2781,88196.0,88185.0,0.25717]
[1766331492210,0.2781,88196.0,88186.0,0.16193]
[1766331492641,0.2781,88196.0,88187.0,0.16193]
[1766331492840,0.01701812,88198.0,88187.0,0.16193]
[1766331493260,0.00568,88198.0,88187.0,0.16193]
[1766331493984,0.000549,88187.0,88186.0,0.25717]
[1766331494199,0.000549,88187.0,88180.0,0.25717]
[1766331494413,0.01133928,88189.0,88169.0,0.01134185]
[1766331494414,0.05669696,88189.0,88179.0,0.23869]
[1766331494629,0.01726505,88193.0,88177.0,0.00568]
[1766331495032,0.0680316,88195.0,88177.0,0.01702082]
[1766331495033,0.00568,88192.0,88177.0,0.01702082]
[1766331495252,0.00568,88192.0,88178.0,0.01134069]
[1766331495453,0.00568,88192.0,88179.0,0.21108056]
[1766331495603,0.00568,88192.0,88180.0,0.21461044]
[1766331495791,0.00568,88192.0,88182.0,0.20327]
[1766331495999,0.00568,88192.0,88186.0,0.20327]
[1766331496216,0.00568,88192.0,88187.0,0.16193]
[1766331497877,0.00568,88192.0,88179.0,0.06804288]
[1766331497878,0.2781,88177.0,88146.0,0.08173426]
[1766331498087,0.47569657,88197.0,88146.0,0.01134481]
[1766331498088,0.46435549,88160.0,88146.0,0.01134481]
[1766331498211,0.46435549,88160.0,88144.0,0.21865525]
[1766331498212,0.74813549,88160.0,88144.0,0.16193]
[1766331498422,0.7594785,88160.0,88144.0,0.16193]
[1766331498629,0.28944339,88157.0,88144.0,0.01134108]
[1766331498827,0.28944339,88157.0,88136.0,0.0113461]
[1766331498828,0.4813785,88160.0,88132.0,0.17327661]
[1766331498829,0.2781,88150.0,88132.0,0.17327661]
[1766331499040,0.06806967,88145.0,88132.0,0.16193]
[1766331499239,0.06806967,88145.0,88132.0,0.16228777]
[1766331499240,0.01134507,88144.0,88132.0,0.16228777]
[1766331499479,0.00513,88143.0,88133.0,0.02496226]
[1766331499696,0.00568,88143.0,88135.0,0.24013]
[1766331500401,0.00568,88143.0,88134.0,0.16193]
[1766331500402,0.28378,88143.0,88134.0,0.16193]
[1766331500639,0.28378,88143.0,88132.0,0.00035777]
[1766331500640,0.01134597,88137.0,88132.0,0.00035777]
[1766331500895,0.446359,88143.0,88120.0,0.00568]
[1766331500896,0.01134648,88133.0,88121.0,0.03436713]
[1766331501173,0.00568,88132.0,88121.0,0.00027625]
[1766331503759,0.00568,88132.0,88124.0,0.0001]
[1766331504535,0.01134674,88131.0,88124.0,0.0001]
[1766331504792,0.01702661,88132.0,88124.0,0.0001]
[1766331505159,0.00568,88132.0,88124.0,0.0001]
[1766331507182,0.17287,88131.0,88124.0,0.0001]
[1766331507394,0.01702661,88132.0,88108.0,0.00568]
[1766331507395,0.0113479,88122.0,88108.0,0.00568]
[1766331507727,0.0113479,88122.0,88090.0,0.42228363]
[1766331507728,0.47613854,88117.0,88100.0,0.1735]
[1766331507926,0.00568,88121.0,88099.0,0.28881867]
[1766331507927,0.01134932,88111.0,88099.0,0.28881867]
[1766331508073,0.00568,88110.0,88099.0,0.28882086]
[1766331508274,0.00568,88110.0,88109.0,0.00061789]
[1766331508519,0.03405879,88120.0,88109.0,0.00061789]
[1766331508520,0.01134764,88124.0,88109.0,0.00061789]
[1766331508721,0.03410046,88119.0,88114.0,0.16782]
[1766331508900,4.6e-07,88119.0,88114.0,0.16782]
[1766331509101,0.06808293,88128.0,88109.0,0.01134957]
[1766331509102,0.04370212,88128.0,88115.0,0.02496736]
[1766331509302,0.00568,88127.0,88118.0,0.27747]
[1766331509508,0.00568,88127.0,88119.0,0.16782]
[1766331510194,0.00568,88127.0,88110.0,0.01134944]
[1766331510195,0.01134803,88121.0,88101.0,0.0113506]
[1766331510432,0.29192,88117.0,88102.0,0.01135048]
[1766331510671,0.29192,88116.0,88102.0,0.01135048]
[1766331510874,0.29192,88116.0,88103.0,0.01135035]
[1766331511085,0.01134829,88119.0,88100.0,0.00568]
[1766331511086,0.01134919,88112.0,88100.0,0.00568]
[1766331511284,0.01134919,88112.0,88094.0,0.22457739]
[1766331511285,0.01034996,88106.0,88094.0,0.16782]
[1766331511493,0.00568,88105.0,88093.0,0.27787]
[1766331512338,0.01135048,88102.0,88093.0,0.0004]
[1766331512542,0.01135073,88100.0,88093.0,0.00049999]
[1766331512740,0.00568,88099.0,88093.0,0.00049999]
[1766331515476,0.00572,88100.0,88094.0,0.16993]
[1766331515836,0.00572,88100.0,88099.0,0.00092753]
[1766331516042,0.00572,88102.0,88099.0,0.00092753]
[1766331516262,0.00572,88102.0,88097.0,0.18128112]
[1766331516479,0.00572,88102.0,88101.0,0.0008656]
[1766331516854,0.00214764,88102.0,88101.0,0.0008656]
[1766331517055,0.28395,88112.0,88101.0,0.0008656]
[1766331517283,0.00572,88111.0,88100.0,0.01135073]
[1766331517497,0.02271063,88115.0,88100.0,0.01135073]
[1766331517498,0.01134816,88120.0,88103.0,0.46173035]
[1766331517685,0.05116,88119.0,88110.0,0.00058692]
[1766331517879,0.50702829,88119.0,88103.0,0.46173035]
[1766331518088,0.49568,88119.0,88104.0,0.01135022]
[1766331518508,0.0001,88113.0,88104.0,0.01135022]
[1766331518809,0.00572,88112.0,88105.0,0.01135009]
[1766331519003,0.00572,88112.0,88106.0,0.01134996]
[1766331519807,0.00572,88112.0,88107.0,0.01134983]
[1766331520214,0.00572,88112.0,88103.0,0.46173035]
[1766331520215,0.04544,88125.0,88112.0,0.01134919]
[1766331520412,0.04544,88125.0,88111.0,0.28045]
[1766331520413,0.01134726,88127.0,88113.0,0.45038]
[1766331520617,0.00572,88124.0,88113.0,0.45038]
[1766331520890,0.00572,88124.0,88112.0,0.01134919]
[1766331521134,0.00572,88124.0,88113.0,0.18127906]
[1766331521492,0.00572,88124.0,88112.0,0.28045]
[1766331521662,0.00572,88124.0,88113.0,0.01134906]
[1766331521838,0.00572,88124.0,88112.0,0.29179919]
[1766331522445,0.00572,88124.0,88113.0,0.01134906]
[1766331522643,0.00572,88123.0,88113.0,0.01134906]
[1766331523049,0.00572,88123.0,88118.0,0.00033926]
[1766331523250,0.00572,88123.0,88114.0,0.01134893]
[1766331523455,0.00572,88123.0,88120.0,0.00027735]
[1766331524689,0.00572,88123.0,88120.0,0.00037734]
[1766331531078,0.00572,88123.0,88114.0,0.01134893]
[1766331531277,0.00572,88123.0,88114.0,0.01141787]
[1766331533361,0.00572,88123.0,88114.0,6.894e-05]
[1766331538413,0.28967,88123.0,88114.0,6.894e-05]
[1766331540348,0.28967,88123.0,88114.0,0.01141787]
[1766331540592,0.28967,88123.0,88114.0,6.894e-05]
[1766331542017,0.0001,88130.0,88114.0,0.01141787]
[1766331542217,0.11016449,88134.0,88114.0,0.01141787]
[1766331542218,0.04720806,88133.0,88127.0,0.28045]
[1766331542423,0.0001,88134.0,88127.0,0.28045]
[1766331542424,0.03027743,88134.0,88127.0,0.45038]
[1766331542646,0.00578,88134.0,88127.0,0.45038]
[1766331546075,0.00578,88134.0,88127.0,0.46172726]
[1766331547284,0.00578,88134.0,88127.0,0.45038]
[1766331548319,0.00578,88134.0,88127.0,0.28045]
[1766331548510,0.00578,88134.0,88123.0,0.18464777]
[1766331548733,0.00578,88134.0,88123.0,0.47393777]
[1766331549068,0.00578,88134.0,88124.0,0.01134764]
[1766331549708,0.00578,88134.0,88123.0,0.30063777]
[1766331549923,0.00578,88134.0,88124.0,0.1733]
[1766331552315,0.00578,88134.0,88120.0,0.0001]
[1766331552316,0.28582,88132.0,88120.0,0.0001]
[1766331552489,0.4498,88132.0,88120.0,0.46269]
[1766331553078,0.46114661,88132.0,88120.0,0.46269]
[1766331553499,0.4498,88132.0,88120.0,0.46269]
[1766331555608,0.4498,88132.0,88120.0,0.28939]
[1766331555814,0.4498,88132.0,88121.0,0.1733]
[1766331555993,0.01712635,88134.0,88123.0,0.1733]
[1766331557162,0.00578,88134.0,88123.0,0.1733]
[1766331562484,0.00578,88134.0,88124.0,0.30063764]
[1766331563084,0.00578,88134.0,88124.0,0.28929]
[1766331563649,0.00578,88134.0,88124.0,0.30063764]
[1766331564198,0.00578,88134.0,88124.0,0.28929]
[1766331564487,0.45558,88134.0,88124.0,0.28929]
[1766331565505,0.45558,88134.0,88120.0,0.0002]
[1766331565506,0.1556,88126.0,88120.0,0.0002]
[1766331565706,0.27033,88126.0,88120.0,0.0002]
[1766331565906,0.00568,88129.0,88120.0,0.0002]
[1766331566318,0.00568,88129.0,88120.0,0.45752]
[1766331566489,0.00568,88129.0,88121.0,0.45732]
[1766331569517,0.00568,88129.0,88121.0,0.01134803]
[1766331569704,0.00568,88129.0,88122.0,0.45732]
[1766331569901,0.00568,88129.0,88122.0,0.4686679]
[1766331570111,0.00568,88129.0,88123.0,0.01134777]
[1766331570521,0.00568,88129.0,88124.0,0.01134764]
[1766331571250,0.005231,88129.0,88124.0,0.01134764]
[1766331572002,0.005231,88129.0,88123.0,0.17213777]
[1766331572834,0.005231,88129.0,88124.0,0.01134764]
[1766331573233,0.005231,88129.0,88123.0,0.17213777]
[1766331573621,0.005231,88129.0,88124.0,0.01134764]
[1766331574175,0.005231,88129.0,88123.0,0.17213777]
[1766331574576,0.005231,88129.0,88123.0,0.16079]
[1766331575259,0.005231,88129.0,88123.0,0.17213777]
[1766331575839,0.005231,88129.0,88123.0,0.16079]
[1766331576046,0.000549,88123.0,88120.0,0.0002]
[1766331576453,0.005231,88129.0,88120.0,0.0002]
[1766331576728,0.005231,88129.0,88120.0,0.44683]
[1766331580516,0.016578,88129.0,88120.0,0.44683]
[1766331580748,0.005231,88129.0,88120.0,0.44683]
[1766331582148,0.016578,88129.0,88120.0,0.44683]
[1766331582370,0.01134713,88128.0,88120.0,0.44683]
[1766331582652,0.016578,88129.0,88121.0,0.15995]
[1766331582852,0.01134713,88128.0,88121.0,0.15995]
[1766331583198,0.016578,88129.0,88121.0,0.15995]
[1766331583797,0.016578,88129.0,88120.0,0.0002]
[1766331583798,0.29413,88126.0,88120.0,0.0002]
[1766331584033,0.29413,88125.0,88120.0,0.0002]
[1766331584232,0.00568,88124.0,88120.0,0.0002]
[1766331594503,0.00568,88124.0,88114.0,6.894e-05]
[1766331596050,0.00568,88124.0,88093.0,0.01185163]
[1766331596051,0.01134919,88112.0,88093.0,0.01185163]
[1766331596223,0.02271063,88120.0,88093.0,0.01185163]
[1766331596224,0.01135009,88105.0,88099.0,0.00465347]
[1766331596425,0.01135009,88105.0,88093.0,0.0005]
[1766331596426,0.0113506,88101.0,88093.0,0.0005]
[1766331596617,0.45209,88102.0,88093.0,0.0005]
[1766331598008,0.451541,88102.0,88093.0,0.0005]
[1766331598976,0.29413,88101.0,88093.0,0.0005]
[1766331600067,0.45209,88101.0,88093.0,0.0005]